bitfinex/quotes_SOLUSD_20250830
["timestamp","ask_amount","ask_price","bid_price","bid_amount"]
[1756518592777,4.67818375,203.12,203.08,0.71]
[1756518593076,4.67818375,203.12,203.09,4.92392535]
[1756518593893,4.67818375,203.13,203.09,5.63392535]
[1756518594771,5.34818375,203.13,203.09,5.63392535]
[1756518596090,0.67,203.17,203.1,0.71]
[1756518596592,4.67818375,203.13,203.1,0.71]
[1756518597188,4.67818375,203.13,203.1,5.6336489]
[1756518597382,4.67818375,203.13,203.1,4.9236489]
[1756518597891,4.67818375,203.13,203.1,5.6336489]
[1756518598087,4.67818375,203.14,203.1,5.6336489]
[1756518598395,5.34818375,203.14,203.1,5.6336489]
[1756518598896,4.67818375,203.14,203.1,5.6336489]
[1756518599395,5.34818375,203.14,203.1,4.9236489]
[1756518599575,5.34818375,203.14,203.1,5.6336489]
[1756518600188,4.67818375,203.14,203.07,30.83103006]
[1756518600498,0.67,203.13,203.08,4.67818375]
[1756518600702,0.67,203.13,203.09,0.71]
[1756518600991,4.67818375,203.14,203.09,0.71]
[1756518601168,5.37818375,203.14,203.09,0.71]
[1756518601572,5.37818375,203.14,203.09,0.7]
[1756518602611,5.37818375,203.14,203.1,4.92368291]
[1756518602902,4.67818375,203.14,203.1,5.62368291]
[1756518603601,0.7,203.16,203.1,5.62368291]
[1756518603785,5.37818375,203.18,203.12,4.67818375]
[1756518603999,5.37818375,203.18,203.12,5.37818375]
[1756518604190,5.37818375,203.18,203.12,0.7]
[1756518604381,5.37818375,203.18,203.13,9.60113949]
[1756518604585,5.37818375,203.18,203.14,0.7]
[1756518604884,5.37818375,203.2,203.14,18.27377776]
[1756518605108,5.37818375,203.2,203.14,18.97377776]
[1756518605489,5.37818375,203.2,203.15,4.67818375]
[1756518605805,5.37818375,203.2,203.15,5.37818375]
[1756518605806,0.7,203.2,203.15,5.37818375]
[1756518606107,0.7,203.2,203.16,4.67818375]
[1756518606291,0.7,203.24,203.19,4.67818375]
[1756518606607,0.7,203.24,203.21,4.92101766]
[1756518607282,4.73818375,203.25,203.21,4.92101766]
[1756518607485,5.43818375,203.25,203.21,4.92101766]
[1756518608009,0.06,203.25,203.21,5.62101766]
[1756518608187,5.43818375,203.25,203.2,4.67818375]
[1756518608386,5.43818375,203.25,203.2,0.7]
[1756518608587,0.76,203.25,203.2,5.37818375]
[1756518609191,5.37818375,203.24,203.19,13.59559401]
[1756518609393,5.37818375,203.24,203.2,0.7]
[1756518610005,0.06,203.25,203.2,5.37818375]
[1756518610290,0.76,203.25,203.21,9.59920141]
[1756518610506,0.7,203.24,203.21,4.92101766]
[1756518610882,0.06,203.25,203.21,4.92101766]
[1756518611112,0.76,203.25,203.21,4.92101766]
[1756518611905,0.06,203.25,203.22,4.67818375]
[1756518612096,0.06,203.25,203.23,5.37818375]
[1756518612295,0.06,203.25,203.23,4.67818375]
[1756518613107,5.37818375,203.24,203.2,0.7]
[1756518613301,5.37818375,203.24,203.1,44.61770397]
[1756518613302,0.7,203.23,203.19,4.67818375]
[1756518613615,0.7,203.23,203.19,9.59959892]
[1756518614805,4.67818375,203.24,203.19,9.59959892]
[1756518615013,5.37818375,203.24,203.19,10.29959892]
[1756518615393,0.06,203.25,203.22,4.67818375]
[1756518615593,0.76,203.25,203.21,4.67818375]
[1756518615788,0.7,203.24,203.2,5.37818375]
[1756518616015,0.7,203.23,203.19,4.92141517]
[1756518616204,0.7,203.23,203.19,10.29959892]
[1756518616401,5.43818375,203.25,203.19,10.29959892]
[1756518616602,0.7,203.24,203.19,10.29959892]
[1756518617101,5.37818375,203.23,203.16,0.7]
[1756518617302,5.37818375,203.23,203.17,4.67818375]
[1756518617303,4.67818375,203.22,203.17,4.67818375]
[1756518617509,0.7,203.21,203.17,4.67818375]
[1756518617708,0.7,203.2,203.17,4.67818375]
[1756518617904,0.7,203.22,203.17,5.37818375]
[1756518618102,0.7,203.21,203.17,10.30016393]
[1756518619016,26.0,203.24,203.18,5.37818375]
[1756518619215,4.67818375,203.24,203.18,5.37818375]
[1756518619416,4.67818375,203.23,203.17,9.60016393]
[1756518619623,4.67818375,203.22,203.17,23.19575794]
[1756518619823,5.37818375,203.22,203.17,23.89575794]
[1756518620618,0.7,203.22,203.17,23.19575794]
[1756518620827,4.67818375,203.23,203.18,5.37818375]
[1756518620998,5.37818375,203.22,203.17,23.19575794]
[1756518621326,5.37818375,203.22,203.17,23.89575794]
[1756518621699,5.37818375,203.22,203.17,23.19575794]
[1756518621904,5.37818375,203.21,203.16,4.67818375]
[1756518622129,0.7,203.2,203.16,4.67818375]
[1756518622303,0.7,203.2,203.16,5.37818375]
[1756518622702,0.7,203.2,203.16,10.30025703]
[1756518623028,0.7,203.2,203.16,5.62207328]
[1756518623196,0.7,203.2,203.16,10.30025703]
[1756518623629,4.67818375,203.21,203.16,10.30025703]
[1756518623809,5.37818375,203.21,203.16,5.37818375]
[1756518624425,132.3,203.24,203.17,5.37818375]
[1756518624597,4.67818375,203.23,203.17,5.37818375]
[1756518624797,5.37818375,203.22,203.17,0.7]
[1756518625002,0.7,203.21,203.16,9.60037841]
[1756518625201,0.7,203.21,203.16,10.30037841]
[1756518625441,0.7,203.21,203.17,0.7]
[1756518626125,4.67818375,203.21,203.13,4.92295574]
[1756518626306,0.7,203.2,203.14,14.29559401]
[1756518626511,0.7,203.19,203.15,4.67818375]
[1756518626841,0.7,203.19,203.15,9.60062018]
[1756518627010,0.7,203.19,203.15,10.30062018]
[1756518627936,0.7,203.21,203.16,0.7]
[1756518628142,5.37818375,203.21,203.16,5.6221531]
[1756518628606,136.52031304,203.24,203.16,5.6221531]
[1756518628607,4.67818375,203.2,203.16,5.6221531]
[1756518628807,5.37818375,203.2,203.16,5.6221531]
[1756518629529,5.37818375,203.2,203.16,0.7]
[1756518630027,5.37818375,203.2,203.16,5.62215022]
[1756518632322,4.67818375,203.2,203.15,4.92247108]
[1756518632520,5.36818375,203.19,203.15,4.92247108]
[1756518632717,0.69,203.18,203.15,4.92247108]
[1756518633024,0.69,203.17,203.12,48.92138185]
[1756518633229,0.69,203.17,203.12,49.62138185]
[1756518633718,0.69,203.17,203.13,0.7]
[1756518633923,0.69,203.17,203.13,5.62287863]
[1756518634121,5.36818375,203.18,203.13,5.62287863]
[1756518634323,4.67818375,203.18,203.13,10.30106238]
[1756518634539,0.69,203.17,203.13,5.62287863]
[1756518634738,5.36818375,203.19,203.14,4.67818375]
[1756518635041,0.69,203.18,203.14,4.67818375]
[1756518635442,0.69,203.18,203.14,5.37818375]
[1756518635649,0.69,203.18,203.16,0.03]
[1756518635829,4.67818375,203.19,203.16,0.03]
[1756518636344,5.36818375,203.19,203.16,0.03]
[1756518636648,0.69,203.18,203.16,0.03]
[1756518637225,4.67818375,203.19,203.16,0.03]
[1756518637433,0.69,203.18,203.16,0.03]
[1756518639035,0.69,203.17,203.16,0.03]
[1756518639241,5.36818375,203.18,203.16,0.03]
[1756518639959,4.67818375,203.18,203.16,0.03]
[1756518640129,5.36818375,203.17,203.16,0.03]
[1756518643934,10.29017026,203.17,203.16,0.03]
[1756518644750,5.36818375,203.17,203.16,0.03]
[1756518649850,30.67818375,203.17,203.16,0.03]
[1756518650164,31.36818375,203.17,203.16,0.03]
[1756518650350,26.69,203.17,203.16,0.03]
[1756518650556,31.36818375,203.17,203.16,0.03]
[1756518652357,36.29017026,203.17,203.16,0.03]
[1756518654230,31.36818375,203.17,203.16,0.03]
[1756518657042,49.88576427,203.17,203.13,0.03]
[1756518657237,30.67818375,203.14,203.13,0.03]
[1756518657636,31.36818375,203.14,203.13,0.03]
[1756518658060,33.34149475,203.14,203.13,0.03]
[1756518658450,77.42420814,203.14,203.13,0.03]
[1756518658960,72.74602439,203.14,203.13,0.03]
[1756518659141,65.85,203.14,203.13,0.03]
[1756518659340,70.52818375,203.14,203.13,0.03]
[1756518659741,75.45089714,203.14,203.13,0.03]
[1756518660657,36.29089714,203.14,203.13,0.03]
[1756518660858,4.67818375,203.14,203.13,0.03]
[1756518661152,30.67818375,203.14,203.13,0.03]
[1756518661353,26.0,203.14,203.13,0.03]
[1756518661561,4.67818375,203.14,203.13,0.03]
[1756518667076,30.67818375,203.14,203.13,0.03]
[1756518667648,26.0,203.14,203.13,0.03]
[1756518667852,30.67818375,203.14,203.13,0.03]
[1756518668750,4.67818375,203.14,203.13,0.03]
[1756518671548,157.6,203.17,203.13,0.03]
[1756518671752,4.67818375,203.14,203.13,0.03]
[1756518672874,5.33818375,203.14,203.13,0.03]
[1756518673046,4.67818375,203.14,203.13,0.03]
[1756518673447,30.67818375,203.14,203.13,0.03]
[1756518676052,39.82,203.14,203.13,0.03]
[1756518676277,44.49818375,203.14,203.13,0.03]
[1756518676482,49.45176075,203.14,203.13,0.03]
[1756518676673,54.37447414,203.14,203.13,0.03]
[1756518677463,49.45176075,203.14,203.13,0.03]
[1756518677665,54.37447414,203.14,203.13,0.03]
[1756518680288,44.773577,203.14,203.13,0.03]
[1756518680461,49.45176075,203.14,203.13,0.03]
[1756518680861,54.37447414,203.14,203.13,0.03]
[1756518683191,49.45176075,203.14,203.13,0.03]
[1756518683389,9.63176075,203.14,203.13,0.03]
[1756518683570,4.67818375,203.14,203.13,0.03]
[1756518684005,170.82,203.15,203.13,0.03]
[1756518684179,4.67818375,203.14,203.13,0.03]
[1756518686172,132.26,203.15,203.13,0.03]
[1756518686379,131.6,203.15,203.13,0.7]
[1756518686777,4.67818375,203.14,203.13,0.7]
[1756518686977,132.26,203.15,203.13,0.03]
[1756518687173,4.67818375,203.14,203.13,0.03]
[1756518687607,5.33818375,203.14,203.13,0.03]
[1756518687896,10.26089714,203.14,203.13,0.03]
[1756518689493,49.42089714,203.14,203.13,0.03]
[1756518691608,43.83818375,203.14,203.13,0.03]
[1756518691804,44.49818375,203.14,203.13,0.03]
[1756518691995,49.42089714,203.14,203.13,0.03]
[1756518696015,51.39411114,203.14,203.13,0.03]
[1756518696390,26.0,203.11,203.1,0.03]
[1756518696584,69.83818375,203.11,203.1,0.03]
[1756518696896,70.49818375,203.11,203.1,0.03]
[1756518697219,65.26,203.11,203.1,0.03]
[1756518697413,68.9420383,203.11,203.1,0.03]
[1756518697621,73.6202223,203.11,203.1,0.03]
[1756518697807,78.5436628,203.11,203.1,0.03]
[1756518698188,75.5216245,203.11,203.1,0.03]
[1756518698408,78.5436628,203.11,203.1,0.03]
[1756518699297,84.9679598,203.11,203.1,0.03]
[1756518700613,84.9279598,203.11,203.1,0.03]
[1756518700988,75.4816245,203.11,203.1,0.03]
[1756518701188,84.9279598,203.11,203.1,0.03]
[1756518702921,97.23656105,203.11,203.04,1.16361944]
[1756518703127,4.72316765,203.05,203.04,1.16361944]
[1756518703333,43.90316765,203.05,203.04,1.16361944]
[1756518704905,48.82806299,203.05,203.04,1.16361944]
[1756518705306,49.48806299,203.05,203.04,1.16361944]
[1756518706104,49.52806299,203.05,203.04,1.16361944]
[1756518707227,44.58316765,203.05,203.04,1.16361944]
[1756518707428,46.55735565,203.05,203.04,1.16361944]
[1756518708134,51.48225099,203.05,203.04,1.16361944]
[1756518709652,51.48225099,203.05,202.99,0.847]
[1756518709653,26.0,203.02,202.99,0.157]
[1756518709838,4.72316765,203.0,202.99,0.157]
[1756518710448,9.64927602,203.0,202.99,0.157]
[1756518710651,4.92610837,203.0,202.99,0.157]
[1756518711140,19.30048467,203.0,202.99,0.157]
[1756518711347,19.96048467,203.0,202.99,0.157]
[1756518711521,19.96048467,203.0,202.99,0.187]
[1756518712142,10.51414937,203.0,202.99,0.187]
[1756518712335,19.96048467,203.0,202.99,0.187]
[1756518713828,9.85414937,203.0,202.99,0.187]
[1756518714055,19.96048467,203.0,202.99,0.187]
[1756518716792,26.0,202.97,202.86,0.69]
[1756518716979,4.72316765,202.89,202.87,0.69]
[1756518717155,72.39937436,202.96,202.87,0.69]
[1756518717156,32.73937436,202.96,202.87,0.69]
[1756518717354,4.72316765,202.92,202.89,4.92877914]
[1756518717550,4.72316765,202.93,202.9,0.69]
[1756518717957,0.66,202.99,202.9,0.69]
[1756518717958,14.811523,202.94,202.9,0.69]
[1756518718456,39.68,203.01,202.91,13.59559401]
[1756518718666,14.808599,202.99,202.93,13.59559401]
[1756518718862,4.72316765,202.98,202.94,0.69]
[1756518719463,4.72316765,202.98,202.95,4.927322]
[1756518719687,14.806407,203.03,202.96,0.69]
[1756518719857,4.92485466,203.06,202.96,0.69]
[1756518720055,4.72316765,203.02,202.97,13.59559401]
[1756518720257,4.72316765,203.02,202.98,0.69]
[1756518720472,6.73937436,203.09,202.99,18.31876166]
[1756518720695,4.72316765,203.06,203.0,5.41316765]
[1756518720888,4.72316765,203.06,203.01,0.71]
[1756518721068,4.72316765,203.06,203.02,13.59559401]
[1756518721263,4.72316765,203.08,203.03,0.71]
[1756518721787,26.06,203.1,203.04,4.9251379]
[1756518721985,4.72316765,203.07,203.05,0.71]
[1756518722488,4.72316765,203.07,203.04,4.9251379]
[1756518722681,4.72316765,203.07,203.06,0.71]
[1756518723490,4.72316765,203.07,203.03,4.92538048]
[1756518723709,4.72316765,203.05,203.03,0.71]
[1756518724000,4.72316765,203.05,203.04,0.71]
[1756518725874,5.38316765,203.05,202.99,0.71]
[1756518726069,4.72316765,203.0,202.99,0.71]
[1756518726992,4.72316765,203.0,202.96,4.9270264]
[1756518727177,4.72316765,203.0,202.99,0.71]
[1756518727373,4.72316765,203.0,202.96,4.9270264]
[1756518727576,4.72316765,203.0,202.94,39.59559401]
[1756518727577,0.66,203.02,202.97,5.63683287]
[1756518727804,4.72316765,203.0,202.98,0.71]
[1756518728178,4.72316765,203.0,202.99,0.71]
[1756518729209,4.72316765,203.0,202.99,0.74]
[1756518729711,0.66,203.04,202.99,0.74]
[1756518729886,4.72316765,203.0,202.99,0.74]
[1756518730086,4.72316765,203.0,202.99,0.03]
[1756518730401,4.72316765,203.0,202.99,0.74]
[1756518732104,0.66,203.04,202.99,0.74]
[1756518732290,4.72316765,203.0,202.99,0.74]
[1756518733212,5.38316765,203.0,202.99,0.03]
[1756518733403,10.30927602,203.0,202.99,0.03]
[1756518733895,15.03244367,203.0,202.99,0.03]
[1756518734882,5.38316765,203.0,202.99,0.03]
[1756518735506,10.30927602,203.0,202.99,0.03]
[1756518736295,12.12254201,203.0,202.99,0.03]
[1756518737121,7.39937436,203.0,202.92,0.71]
[1756518737303,7.39937436,203.0,202.79,24.65589212]
[1756518737304,4.72316765,202.93,202.87,4.929145]
[1756518737491,4.72316765,202.92,202.89,0.71]
[1756518737693,4.72316765,202.9,202.86,0.71]
[1756518738005,4.72316765,202.89,202.86,0.71]
[1756518739114,4.72316765,202.89,202.87,0.71]
[1756518739920,5.58809102,202.92,202.87,0.71]
[1756518739921,4.72316765,202.9,202.87,0.71]
[1756518740101,4.72316765,202.88,202.84,0.71]
[1756518740322,4.72316765,202.86,202.82,0.71]
[1756518740503,4.72316765,202.85,202.83,0.71]
[1756518740707,4.72316765,202.84,202.81,0.71]
[1756518740905,4.72316765,202.84,202.74,14.815912]
[1756518740906,4.72316765,202.82,202.76,0.71]
[1756518741115,4.72316765,202.8,202.76,0.71]
[1756518741313,4.72316765,202.8,202.77,0.71]
[1756518742124,4.72316765,202.79,202.76,13.59559401]
[1756518742417,4.72316765,202.79,202.75,0.71]
[1756518742610,4.72316765,202.79,202.76,0.71]
[1756518743310,0.66,202.82,202.77,0.71]
[1756518743511,4.72316765,202.79,202.77,0.71]
[1756518743926,4.72316765,202.79,202.75,5.64218249]
[1756518744218,4.72316765,202.79,202.76,0.71]
[1756518744608,4.72316765,202.77,202.72,0.71]
[1756518744814,0.66,202.76,202.64,12.33691832]
[1756518745012,4.72316765,202.73,202.7,0.71]
[1756518745215,0.66,202.76,202.7,0.71]
[1756518745518,4.72316765,202.73,202.7,0.71]
[1756518746036,4.72316765,202.74,202.7,0.71]
[1756518746328,0.66,202.76,202.7,0.71]
[1756518746506,4.72316765,202.74,202.7,0.71]
[1756518746706,4.72316765,202.74,202.7,5.64339304]
[1756518747328,4.72316765,202.74,202.7,0.71]
[1756518747706,4.72316765,202.74,202.64,12.33691832]
[1756518747707,0.66,202.73,202.65,0.71]
[1756518747908,0.66,202.73,202.63,4.72316765]
[1756518747909,4.72316765,202.69,202.63,4.72316765]
[1756518748118,4.72316765,202.67,202.63,13.59559401]
[1756518748426,4.72316765,202.67,202.64,0.71]
[1756518748826,4.72316765,202.67,202.63,13.59559401]
[1756518749000,0.66,202.7,202.63,14.30559401]
[1756518749205,4.72316765,202.67,202.63,14.30559401]
[1756518749417,0.66,202.7,202.64,0.71]
[1756518749721,4.72316765,202.66,202.62,5.64534477]
[1756518749923,4.72316765,202.66,202.63,0.71]
[1756518750095,4.72316765,202.66,202.62,4.93534477]
[1756518750301,4.72316765,202.65,202.62,0.71]
[1756518750612,4.72316765,202.65,202.63,0.71]
[1756518751007,0.67,202.69,202.61,5.13557764]
[1756518751211,4.72316765,202.65,202.61,5.78557764]
[1756518751403,4.72316765,202.64,202.62,0.65]
[1756518751820,4.72316765,202.65,202.62,0.65]
[1756518752025,4.72316765,202.66,202.62,5.58527232]
[1756518752219,0.67,202.68,202.62,4.93527232]
[1756518752520,0.67,202.71,202.63,0.65]
[1756518752828,4.72316765,202.68,202.63,0.65]
[1756518753029,0.67,202.71,202.63,0.65]
[1756518753335,4.72316765,202.69,202.64,13.59559401]
[1756518753501,0.67,202.71,202.65,0.65]
[1756518753838,4.72316765,202.71,202.66,13.59559401]
[1756518754011,4.72316765,202.71,202.67,5.58412937]
[1756518754210,0.67,202.7,202.62,0.65]
[1756518754413,4.72316765,202.67,202.63,13.59559401]
[1756518754616,4.72316765,202.66,202.64,0.65]
[1756518755023,0.67,202.7,202.64,0.65]
[1756518755223,4.72316765,202.66,202.64,5.58484604]
[1756518755729,4.72316765,202.67,202.64,5.58484604]
[1756518756514,0.67,202.7,202.65,0.65]
[1756518756714,4.72316765,202.7,202.66,0.65]
[1756518756940,0.67,202.74,202.67,0.65]
[1756518757145,4.72316765,202.71,202.67,0.65]
[1756518757314,4.72316765,202.72,202.68,0.65]
[1756518757719,131.6,202.77,202.69,0.65]
[1756518757936,131.6,202.77,202.7,13.59559401]
[1756518757937,4.72316765,202.75,202.7,13.59559401]
[1756518758119,4.72316765,202.75,202.71,0.65]
[1756518759420,4.72316765,202.77,202.72,5.58291239]
[1756518760033,183.194144,202.84,202.72,5.58291239]
[1756518760034,4.72316765,202.76,202.72,5.58291239]
[1756518761725,4.72316765,202.77,202.72,5.58291239]
[1756518762023,5.39316765,202.77,202.72,5.58291239]
[1756518762729,0.67,202.8,202.73,0.65]
[1756518762931,0.67,202.83,202.77,4.72316765]
[1756518763242,0.67,202.83,202.78,4.72316765]
[1756518763243,4.72316765,202.83,202.78,4.72316765]
[1756518763441,0.67,202.82,202.78,18.31876166]
[1756518763743,0.67,202.85,202.79,0.65]
[1756518763968,0.67,202.85,202.79,5.58106294]
[1756518764125,4.72316765,202.83,202.79,5.58106294]
[1756518765547,4.72316765,202.83,202.79,4.93106294]
[1756518766521,4.72316765,202.83,202.78,18.52704249]
[1756518766721,4.72316765,202.83,202.78,19.17704249]
[1756518766925,5.39316765,202.83,202.78,19.17704249]
[1756518767241,0.67,202.83,202.79,0.65]
[1756518767539,4.72316765,202.82,202.79,0.65]
[1756518768126,4.72316765,202.82,202.78,60.16704249]
[1756518768325,4.72316765,202.79,202.7,0.65]
[1756518768542,0.67,202.78,202.7,46.99316765]
[1756518768849,4.72316765,202.76,202.71,5.37316765]
[1756518769030,4.72316765,202.76,202.68,4.93388592]
[1756518769234,4.72316765,202.75,202.7,13.59559401]
[1756518769446,5.39316765,202.75,202.7,14.24559401]
[1756518769639,4.72316765,202.76,202.7,18.31876166]
[1756518769950,4.72316765,202.76,202.71,0.65]
[1756518770546,5.39316765,202.76,202.72,4.93291239]
[1756518770755,4.72316765,202.75,202.72,4.93291239]
[1756518773829,4.72316765,202.75,202.71,5.58306606]
[1756518774036,4.72316765,202.75,202.69,4.93344438]
[1756518774247,4.72316765,202.75,202.7,55.72559401]
[1756518774546,4.72316765,202.75,202.71,0.65]
[1756518774850,5.39316765,202.75,202.71,0.65]
[1756518775044,5.39316765,202.75,202.71,5.58297991]
[1756518775355,4.72316765,202.74,202.71,5.58297991]
[1756518775725,4.72316765,202.74,202.71,47.02297991]
[1756518775934,4.72316765,202.74,202.71,42.09]
[1756518776336,4.72316765,202.74,202.71,42.07]
[1756518776547,5.39316765,202.75,202.71,42.05]
[1756518776752,9.65432882,202.8,202.71,42.05]
[1756518776753,0.67,202.77,202.71,41.4]
[1756518776952,0.67,202.79,202.72,5.37316765]
[1756518777257,4.72316765,202.77,202.73,0.65]
[1756518777461,4.72316765,202.77,202.74,0.65]
[1756518777951,0.67,202.76,202.66,4.93437284]
[1756518778133,4.72316765,202.73,202.69,14.24559401]
[1756518778334,4.72316765,202.74,202.69,4.72316765]
[1756518778535,4.72316765,202.74,202.7,0.65]
[1756518778737,4.72316765,202.74,202.66,4.93437284]
[1756518778738,4.72316765,202.73,202.69,43.5]
[1756518779061,4.72316765,202.73,202.69,44.15]
[1756518779356,4.72316765,202.71,202.68,57.05559401]
[1756518779860,5.39316765,202.7,202.67,43.44]
[1756518780160,26.0,202.75,202.65,18.96876166]
[1756518780347,4.93193923,202.76,202.65,18.96876166]
[1756518780348,4.72316765,202.71,202.66,43.42]
[1756518780550,4.72316765,202.71,202.67,0.65]
[1756518780847,5.40316765,202.71,202.66,43.4]
[1756518781045,5.40316765,202.71,202.66,44.07]
[1756518781452,5.40316765,202.7,202.65,13.59559401]
[1756518781659,5.40316765,202.69,202.66,43.38]
[1756518782045,26.0,202.77,202.63,5.39316765]
[1756518782046,5.40316765,202.68,202.63,0.67]
[1756518782252,0.68,202.68,202.63,0.67]
[1756518782460,5.40316765,202.67,202.63,0.67]
[1756518782639,4.72316765,202.67,202.63,5.60507323]
[1756518782957,4.72316765,202.68,202.63,5.60507323]
[1756518783139,5.40316765,202.69,202.64,0.67]
[1756518783337,5.40316765,202.69,202.64,5.60465382]
[1756518783546,5.40316765,202.68,202.64,0.67]
[1756518783762,4.72316765,202.69,202.64,5.6047886]
[1756518783967,0.68,202.73,202.67,4.72316765]
[1756518784148,4.72316765,202.72,202.67,47.98316765]
[1756518784346,4.72316765,202.72,202.67,48.65316765]
[1756518784537,5.40316765,202.72,202.67,48.65316765]
[1756518784743,4.72316765,202.71,202.67,43.93]
[1756518785150,4.72316765,202.71,202.67,48.86403192]
[1756518785646,5.40316765,202.7,202.67,43.26]
[1756518785961,4.72316765,202.71,202.67,48.19412854]
[1756518786345,4.72316765,202.71,202.67,48.86412854]
[1756518786666,0.68,202.74,202.68,14.26559401]
[1756518786970,4.72316765,202.72,202.68,14.26559401]
[1756518787340,4.72316765,202.71,202.67,43.26]
[1756518787550,4.72316765,202.7,202.67,43.26]
[1756518787963,0.68,202.71,202.67,43.26]
[1756518788259,5.40316765,202.71,202.67,48.19410681]
[1756518788449,5.40316765,202.71,202.67,48.86410681]
[1756518788655,4.72316765,202.7,202.67,48.19410681]
[1756518789245,4.72316765,202.7,202.67,43.26]
[1756518789653,0.68,202.71,202.67,48.19409434]
[1756518789863,4.72316765,202.72,202.68,43.79]
[1756518790066,4.72316765,202.71,202.68,43.08]
[1756518790366,4.72316765,202.72,202.68,0.67]
[1756518790562,4.72316765,202.71,202.68,43.73]
[1756518790948,4.72316765,202.71,202.68,0.67]
[1756518791142,6.3097709,202.78,202.69,14.26559401]
[1756518791351,4.72316765,202.78,202.73,4.72316765]
[1756518791553,0.68,202.8,202.74,43.08]
[1756518791763,4.72316765,202.79,202.74,43.75]
[1756518791962,5.40316765,202.79,202.74,43.75]
[1756518793062,4.72316765,202.78,202.74,43.75]
[1756518793267,4.72316765,202.77,202.74,43.08]
[1756518793463,0.68,202.76,202.68,13.59559401]
[1756518793681,4.72316765,202.71,202.67,43.0]
[1756518793846,5.40316765,202.71,202.67,43.0]
[1756518794549,5.40316765,202.71,202.67,43.67]
[1756518795645,4.72316765,202.69,202.66,0.03]
[1756518797876,5.40316765,202.68,202.66,0.03]
[1756518798050,0.68,202.68,202.66,0.03]
[1756518798561,5.40316765,202.68,202.66,0.03]
[1756518799358,4.72316765,202.67,202.66,0.03]
[1756518799670,5.40316765,202.68,202.66,0.03]
[1756518799877,4.72316765,202.68,202.66,0.03]
[1756518800079,0.68,202.67,202.66,0.03]
[1756518800280,4.72316765,202.68,202.66,0.03]
[1756518800576,5.40316765,202.68,202.66,0.03]
[1756518800765,0.68,202.71,202.66,0.03]
[1756518800967,4.72316765,202.69,202.66,0.03]
[1756518801550,5.40316765,202.69,202.66,0.03]
[1756518802281,0.68,202.69,202.66,0.03]
[1756518802486,32.3097709,202.73,202.66,0.03]
[1756518802487,0.68,202.68,202.66,0.03]
[1756518802790,5.40316765,202.68,202.66,0.03]
[1756518803482,0.68,202.68,202.66,0.03]
[1756518803778,4.72316765,202.67,202.66,0.03]
[1756518804356,0.68,202.67,202.66,0.03]
[1756518804554,4.72316765,202.67,202.66,0.03]
[1756518805178,5.40316765,202.67,202.66,0.03]
[1756518806008,4.72316765,202.68,202.66,0.03]
[1756518806354,5.40316765,202.68,202.66,0.03]
[1756518807384,0.68,202.68,202.66,0.03]
[1756518807577,4.72316765,202.67,202.66,0.03]
[1756518809577,10.33729702,202.67,202.66,0.03]
[1756518811869,5.40316765,202.67,202.66,0.03]
[1756518812289,4.72316765,202.67,202.66,0.03]
[1756518812491,5.43316765,202.67,202.66,0.03]
[1756518813689,10.36729702,202.67,202.66,0.03]
[1756518815300,4.72316765,202.67,202.66,0.03]
[1756518817103,5.43316765,202.67,202.66,0.03]
[1756518817988,10.36729702,202.67,202.66,0.03]
[1756518818909,4.93339911,202.7,202.66,0.03]
[1756518819110,4.72316765,202.67,202.66,0.03]
[1756518820378,5.43316765,202.67,202.66,0.03]
[1756518821090,4.72316765,202.67,202.66,0.03]
[1756518821375,5.43316765,202.67,202.66,0.03]
[1756518821582,0.71,202.69,202.66,0.03]
[1756518821783,4.72316765,202.67,202.66,0.03]
[1756518822177,5.43316765,202.67,202.66,0.03]
[1756518822990,0.71,202.67,202.66,0.03]